lending/lending_fUSD_20240219
["ID","MTS","AMOUNT","RATE_DAILY","PERIOD"]
[314422423,1708331440602,-861.933875,0.0003877,14]
[314422424,1708331440614,-151.0,0.0003877,14]
[314422425,1708331440623,-262.481154,0.0003877,14]
[314422426,1708331440633,-861.933875,0.0003877,14]
[314422427,1708331440642,-300.720131,0.0003877,14]
[314422428,1708331440652,-300.720131,0.0003877,14]
[314422429,1708331440662,-151.0,0.0003877,14]
[314422430,1708331440671,-151.0,0.0003877,14]
[314422431,1708331440682,-151.0,0.0003877,14]
[314422432,1708331440691,-761.988408,0.0003877,14]
[314422433,1708331440700,-761.988408,0.0003877,14]
[314422434,1708331440710,-168.39365,0.0003877,14]
[314422435,1708331440720,-168.39365,0.0003877,14]
[314422436,1708331440730,-345.987493,0.0003877,14]
[314422437,1708331440739,-294.905721,0.0003877,14]
[314422438,1708331440749,-345.987493,0.0003877,14]
[314422439,1708331440758,-294.905721,0.0003877,14]
[314422440,1708331440767,-164.035459,0.0003877,14]
[314422441,1708331440776,-164.035459,0.0003877,14]
[314422442,1708331440785,-4019.845621,0.0003877,14]
[314422443,1708331440795,-201.498821,0.0003877,14]
[314422444,1708331440804,-4019.845621,0.0003877,14]
[314422445,1708331440814,-151.0,0.0003877,7]
[314422447,1708331440823,-201.498821,0.0003877,14]
[314422449,1708331440833,-332.222538,0.0003877,14]
[314422450,1708331440842,-332.222538,0.0003877,14]
[314422451,1708331440851,-221.790654,0.0003877,14]
[314422452,1708331440861,-1181.116676,0.0003877,14]
[314422453,1708331440870,-221.790654,0.0003877,14]
[314422454,1708331440879,-1181.116676,0.0003877,14]
[314422455,1708331440889,-3511.84867,0.0003877,14]
[314422456,1708331440898,-3511.84867,0.0003877,14]
[314422457,1708331440908,-344.98824,0.0003877,14]
[314422458,1708331440918,-234.619198,0.0003877,14]
[314422459,1708331441149,-344.98824,0.0003877,14]
[314422460,1708331441159,-234.619198,0.0003877,14]
[314422461,1708331441170,-1106.186879,0.0003877,14]
[314422462,1708331441180,-322.385201,0.0003877,14]
[314422463,1708331441189,-151.0,0.0003877,14]
[314422464,1708331441199,-322.385201,0.0003877,14]
[314422465,1708331441209,-1106.186879,0.0003877,14]
[314422466,1708331441219,-151.0,0.0003877,14]
[314422467,1708331441228,-1052.44782,0.0003877,14]
[314422468,1708331441237,-151.0,0.0003877,14]
[314422469,1708331441246,-1052.44782,0.0003877,14]
[314422470,1708331441255,-4493.148202,0.0003877,14]
[314422471,1708331441264,-151.0,0.0003877,14]
[314422472,1708331441273,-4493.148202,0.0003877,14]
[314422473,1708331441282,-151.0,0.0003877,14]
[314422474,1708331441291,-151.0,0.0003877,14]
[314422475,1708331441300,-554.0297531,0.00038788,4]
[314422476,1708331441310,-500.0,0.00038788,4]
[314422477,1708331441319,-500.0,0.00038788,4]
[314422478,1708331441329,-372.13932196,0.00038788,4]
[314422479,1708331441339,-500.0,0.00038788,4]
[314422480,1708331441349,-500.0,0.00038788,4]
[314422481,1708331441358,-500.0,0.00038788,4]
[314422482,1708331441368,-500.0,0.00038788,4]
[314422483,1708331441378,-500.0,0.00038788,2]
[314422484,1708331441387,-255.67431012,0.00038788,4]
[314422485,1708331441397,-550.37603252,0.00038788,4]
[314422486,1708331441407,-500.0,0.00038788,4]
[314422487,1708331441417,-228.92867572,0.00038788,4]
[314422488,1708331441426,-2895.09,0.00038788,4]
[314422489,1708331441435,-500.0,0.00038796,4]
[314422490,1708331441446,-500.0,0.00038796,4]
[314422491,1708331441456,-266.16318579,0.00038796,4]
[314422492,1708331441466,-500.0,0.00038796,20]
[314422493,1708331441476,-500.0,0.00038796,4]
[314422494,1708331441485,-500.0,0.00038796,4]
[314422495,1708331441494,-1110.99,0.00038796,4]
[314422496,1708331441503,-500.0,0.00038796,4]
[314422497,1708331441513,-500.0,0.00038796,4]
[314422498,1708331441523,-500.0,0.00038796,4]
[314422499,1708331441532,-150.0,0.00038796,4]
[314422500,1708331441541,-500.0,0.00038796,4]
[314422501,1708331441550,-500.0,0.00038796,4]
[314422502,1708331441560,-169.21726142,0.00038796,4]
[314422503,1708331441569,-500.0,0.00038796,4]
[314422504,1708331441579,-500.0,0.00038798,2]
[314422505,1708331441588,-500.0,0.00038798,2]
[314422506,1708331441597,-500.0,0.00038798,4]
[314422507,1708331441610,-500.0,0.00038798,4]
[314422508,1708331441619,-500.0,0.00038798,4]
[314422509,1708331441631,-511.61227339,0.00038798,4]
[314422510,1708331441641,-500.0,0.00038798,4]
[314422511,1708331441652,-500.0,0.00038798,4]
[314422512,1708331441663,-250.57772618,0.00038798,4]
[314422513,1708331441672,-609.37096242,0.00038798,4]
[314422514,1708331441681,-202.7345481,0.00038798,4]
[314422515,1708331441692,-500.0,0.00038798,4]
[314422516,1708331441701,-517.12537462,0.00038798,4]
[314422517,1708331441713,-510.43244309,0.00038799,4]
[314422518,1708331441722,-512.17839581,0.00038799,4]
[314422519,1708331441732,-500.0,0.00038799,4]
[314422520,1708331441742,-510.44883349,0.00038799,4]
[314422521,1708331441753,-510.05670732,0.00038799,4]
[314422522,1708331441764,-517.79308542,0.00038799,4]
[314422523,1708331441774,-500.0,0.00038799,4]
[314422524,1708331441784,-503.41661034,0.00038799,4]
[314422525,1708331441793,-500.0,0.00038799,4]
[314422526,1708331441803,-500.0,0.00038799,4]
[314422527,1708331441813,-500.0,0.00038799,2]
[314422528,1708331441823,-534.78341773,0.00038799,4]
[314422529,1708331441833,-500.0,0.00038799,4]
[314422530,1708331441845,-537.60859713,0.00038799,4]
[314422531,1708331441855,-500.0,0.00038799,4]
[314422532,1708331441864,-500.0,0.00038799,4]
[314422533,1708331441874,-500.0,0.00038799,4]
[314422534,1708331441884,-500.19,0.00038799,4]
[314422535,1708331441894,-500.0,0.00038799,4]
[314422536,1708331441903,-500.0,0.00038799,4]
[314422537,1708331441913,-500.0,0.00038799,2]
[314422538,1708331441922,-500.0,0.00038799,2]
[314422539,1708331441931,-500.0,0.00038799,4]
[314422540,1708331441941,-2895.09,0.00038799,4]
[314422541,1708331441950,-1673.54072267,0.00038799,2]
[314422542,1708331441961,-500.0,0.00038799,4]
[314422543,1708331441971,-500.0,0.00038799,4]
[314422544,1708331441980,-500.0,0.00038799,4]
[314422545,1708331441990,-500.0,0.00038799,4]
[314422546,1708331442000,-2399.85,0.00038799,4]
[314422547,1708331442011,-500.0,0.00038799,4]
[314422548,1708331442020,-804.69,0.00038799,4]
[314422549,1708331442030,-500.0,0.00038799,4]
[314422550,1708331442045,-73696.05449364,0.000388,5]
[314422551,1708331442055,-1879.25,0.00038805,2]
[314422552,1708331442064,-749.08225,0.0003881,2]
[314422553,1708331442073,-16010.7490837,0.00038832,12]
[314422554,1708331442083,-90065.6761906,0.00038834,4]
[314422555,1708331442092,-49939.14434866,0.00038834,2]
[314422556,1708331442101,-554.85022029,0.00038841,2]
[314422557,1708331442110,-500.0,0.00038844,4]
[314422558,1708331442121,-500.0,0.00038844,4]
[314422559,1708331442131,-500.0,0.00038844,4]
[314422560,1708331442140,-206.00730127,0.00038844,4]
[314422561,1708331442149,-500.0,0.00038844,4]
[314422562,1708331442159,-500.0,0.00038844,4]
[314422563,1708331442168,-1141.94,0.00038844,4]
[314422564,1708331442181,-1142.03,0.00038844,4]
[314422565,1708331442190,-500.0,0.00038844,4]
[314422566,1708331442199,-4569.2978295,0.0003885,2]
[314422567,1708331442209,-651.0787568,0.00038861,30]
[314422568,1708331442219,-1067.34537483,0.00038862,4]
[314422569,1708331442228,-189.4827143,0.00038862,4]
[314422570,1708331442237,-2000.0,0.00038863,4]
[314422571,1708331442247,-2000.0,0.00038863,2]
[314422572,1708331442257,-200.0,0.00038863,2]
[314422573,1708331442266,-500.0,0.00038863,2]
[314422574,1708331442275,-500.0,0.00038863,2]
[314422575,1708331442284,-2000.0,0.00038863,2]
[314422576,1708331442294,-200.0,0.00038863,2]
[314422577,1708331442304,-617.5662497,0.00038863,4]
[314422578,1708331442313,-500.0,0.00038863,4]
[314422579,1708331442322,-151.0,0.00038863,14]
[314422580,1708331442331,-168.39365,0.00038863,14]
[314422581,1708331442340,-168.39365,0.00038863,14]
[314422582,1708331442351,-345.987493,0.00038863,14]
[314422583,1708331442360,-294.905721,0.00038863,14]
[314422584,1708331442370,-345.987493,0.00038863,14]
[314422585,1708331442379,-500.0,0.00038863,4]
[314422586,1708331442388,-294.905721,0.00038863,14]
[314422587,1708331442398,-164.035459,0.00038863,14]
[314422588,1708331442407,-164.035459,0.00038863,14]
[314422589,1708331442416,-4019.845621,0.00038863,14]
[314422590,1708331442425,-201.498821,0.00038863,14]
[314422591,1708331442434,-4019.845621,0.00038863,14]
[314422592,1708331442443,-151.0,0.00038863,7]
[314422593,1708331442452,-332.222538,0.00038863,14]
[314422594,1708331442462,-201.498821,0.00038863,14]
[314422595,1708331442471,-332.222538,0.00038863,14]
[314422596,1708331442481,-221.790654,0.00038863,14]
[314422597,1708331442490,-1181.116676,0.00038863,14]
[314422598,1708331442499,-500.0,0.00038863,4]
[314422599,1708331442508,-221.790654,0.00038863,14]
[314422600,1708331442518,-2000.0,0.00038863,2]
[314422601,1708331442527,-500.0,0.00038863,4]
[314422602,1708331442536,-1181.116676,0.00038863,14]
[314422603,1708331442545,-3511.84867,0.00038863,14]
[314422604,1708331442554,-3511.84867,0.00038863,14]
[314422605,1708331442563,-200.0,0.00038863,2]
[314422606,1708331442572,-344.98824,0.00038863,14]
[314422607,1708331442581,-234.619198,0.00038863,14]
[314422608,1708331442590,-344.98824,0.00038863,14]
[314422609,1708331442599,-234.619198,0.00038863,14]
[314422610,1708331442612,-1106.186879,0.00038863,14]
[314422611,1708331442621,-322.385201,0.00038863,14]
[314422612,1708331442631,-322.385201,0.00038863,14]
[314422613,1708331442641,-151.0,0.00038863,14]
[314422614,1708331442650,-1106.186879,0.00038863,14]
[314422615,1708331442660,-459.31030193,0.00038863,4]
[314422616,1708331442669,-151.0,0.00038863,14]
[314422617,1708331442678,-1052.44782,0.00038863,14]
[314422618,1708331442689,-151.0,0.00038863,14]
[314422619,1708331442699,-1052.44782,0.00038863,14]
[314422620,1708331442709,-4493.148202,0.00038863,14]
[314422621,1708331442718,-151.0,0.00038863,14]
[314422622,1708331442728,-4493.148202,0.00038863,14]
[314422623,1708331442737,-151.0,0.00038863,14]
[314422624,1708331442747,-151.0,0.00038863,14]
[314422625,1708331442756,-1259.98996334,0.00038864,3]
[314422626,1708331442765,-200.0,0.00038864,2]
[314422627,1708331442775,-345.0,0.00038864,2]
[314422628,1708331442785,-90065.6761906,0.00038864,4]
[314422629,1708331442795,-155.0,0.00038864,4]
[314422630,1708331442805,-22510.76359526,0.00038864,2]
[314422631,1708331442815,-500.0,0.00038864,4]
[314422632,1708331442825,-500.0,0.00038864,2]
[314422633,1708331442835,-2895.09,0.00038864,4]
[314422634,1708331442845,-336.234787,0.00038864,14]
[314422635,1708331442855,-336.234787,0.00038864,14]
[314422636,1708331442865,-154.433479,0.00038864,14]
[314422637,1708331442875,-151.0,0.00038864,14]
[314422638,1708331442885,-151.0,0.00038864,14]
[314422639,1708331442894,-151.0,0.00038864,14]
[314422640,1708331442903,-500.0,0.00038871,4]
[314422641,1708331442913,-500.0,0.00038871,4]
[314422642,1708331442924,-500.0,0.00038871,4]
[314422643,1708331442933,-500.0,0.00038871,4]
[314422644,1708331442944,-2399.85,0.00038871,4]
[314422645,1708331442953,-500.0,0.00038871,4]
[314422646,1708331442963,-804.69,0.00038871,4]
[314422647,1708331442973,-500.0,0.00038871,4]
[314422648,1708331442983,-354.62882629,0.00038872,4]
[314422649,1708331442993,-500.0,0.00038872,4]
[314422650,1708331443004,-500.0,0.00038872,2]
[314422651,1708331443014,-500.0,0.00038872,4]
[314422652,1708331443024,-500.0,0.00038872,4]
[314422653,1708331443034,-500.0,0.00038872,4]
[314422654,1708331443044,-500.0,0.00038872,4]
[314422655,1708331443053,-500.0,0.00038872,4]
[314422657,1708331443062,-491.14996663,0.00038872,2]
[314422658,1708331443072,-606.42,0.00038872,2]
[314422659,1708331443081,-500.0,0.00038872,4]
[314422660,1708331443091,-655.663594,0.00038872,2]
[314422661,1708331443100,-655.663594,0.00038872,2]
[314422662,1708331443109,-202.301092,0.00038872,14]
[314422664,1708331443119,-684.563752,0.00038872,14]
[314422665,1708331443128,-202.301092,0.00038872,14]
[314422666,1708331443137,-577.70763015,0.00038872,2]
[314422667,1708331443146,-684.563752,0.00038872,14]
[314422668,1708331443155,-151.0,0.00038872,14]
[314422669,1708331443164,-151.0,0.00038872,14]
[314422670,1708331443174,-219.801149,0.00038872,14]
[314422671,1708331443184,-170.863115,0.00038872,14]
[314422672,1708331443194,-170.863115,0.00038872,14]
[314422673,1708331443203,-151.0,0.00038872,14]
[314422674,1708331443213,-311.416744,0.00038872,14]
[314422676,1708331443222,-311.416744,0.00038872,14]
[314422677,1708331443232,-393.990139,0.00038872,14]
[314422678,1708331443241,-393.990139,0.00038872,14]
[314422679,1708331443254,-215.851779,0.00038872,14]
[314422680,1708331443263,-151.0,0.00038872,14]
[314422681,1708331443273,-215.851779,0.00038872,14]
[314422682,1708331443282,-151.0,0.00038872,14]
[314422683,1708331443291,-320.345835,0.00038872,14]
[314422684,1708331443300,-320.345835,0.00038872,14]
[314422685,1708331443309,-289.628742,0.00038872,14]
[314422686,1708331443318,-151.0,0.00038872,14]
[314422687,1708331443327,-289.628742,0.00038872,14]
[314422688,1708331443337,-256.749914,0.00038872,14]
[314422689,1708331443346,-220.534074,0.00038872,14]
[314422690,1708331443355,-163.569567,0.00038872,14]
[314422691,1708331443365,-256.749914,0.00038872,14]
[314422692,1708331443374,-220.534074,0.00038872,14]
[314422693,1708331443382,-163.569567,0.00038872,14]
[314422694,1708331443392,-424.796395,0.00038872,14]
[314422695,1708331443401,-424.796395,0.00038872,14]
[314422696,1708331443410,-151.0,0.00038872,14]
[314422697,1708331443421,-151.0,0.00038872,14]
[314422698,1708331443431,-6854.281877,0.00038872,14]
[314422699,1708331443440,-6854.281877,0.00038872,14]
[314422700,1708331443449,-8550.0,0.00038872,14]
[314422701,1708331443459,-8550.0,0.00038872,14]
[314422702,1708331443469,-1402.654032,0.00038872,14]
[314422703,1708331443479,-500.0,0.00038872,4]
[314422704,1708331443488,-1402.654032,0.00038872,14]
[314422705,1708331443497,-151.0,0.00038872,14]
[314422706,1708331443506,-256.045671,0.00038872,14]
[314422707,1708331443515,-262.481154,0.00038872,14]
[314422708,1708331443524,-861.933875,0.00038872,14]
[314422709,1708331443534,-151.0,0.00038872,14]
[314422710,1708331443543,-262.481154,0.00038872,14]
[314422711,1708331443553,-861.933875,0.00038872,14]
[314422712,1708331443562,-300.720131,0.00038872,14]
[314422713,1708331443571,-300.720131,0.00038872,14]
[314422714,1708331443581,-151.0,0.00038872,14]
[314422715,1708331443590,-151.0,0.00038872,14]
[314422716,1708331443600,-761.988408,0.00038872,14]
[314422717,1708331443612,-761.988408,0.00038872,14]
[314422719,1708331443621,-500.0,0.00038872,4]
[314422721,1708331443630,-500.0,0.00038872,4]
[314422723,1708331443639,-500.0,0.00038873,4]
[314422725,1708331443650,-500.0,0.00038873,4]
[314422727,1708331443659,-500.0,0.00038873,20]
[314422729,1708331443669,-500.0,0.00038873,4]
[314422732,1708331443678,-500.0,0.00038873,4]
[314422734,1708331443687,-500.0,0.00038873,4]
[314422736,1708331443696,-500.0,0.00038873,4]
[314422738,1708331443706,-500.0,0.00038873,2]
[314422740,1708331443717,-500.0,0.00038873,2]
[314422743,1708331443727,-1110.99,0.00038873,4]
[314422744,1708331443736,-500.0,0.00038873,4]
[314422746,1708331443745,-500.0,0.00038873,4]
[314422748,1708331443754,-1000.0,0.00038873,4]
[314422751,1708331443764,-1000.0,0.00038873,4]
[314422754,1708331443773,-1000.0,0.00038873,4]
[314422757,1708331443783,-1000.0,0.00038873,4]
[314422760,1708331443793,-1000.0,0.00038873,4]
[314422763,1708331443802,-1000.0,0.00038873,4]
[314422765,1708331443811,-1000.0,0.00038873,4]
[314422767,1708331443821,-1000.0,0.00038873,4]
[314422769,1708331443830,-1000.0,0.00038873,4]
[314422771,1708331443839,-1000.0,0.00038873,4]
[314422773,1708331443849,-1000.0,0.00038873,4]
[314422774,1708331443858,-640.45277931,0.00038873,4]
[314422775,1708331443867,-2895.09,0.00038873,4]
[314422776,1708331443876,-2895.09,0.00038873,4]
[314422777,1708331443886,-500.0,0.00038873,4]
[314422778,1708331443895,-500.0,0.00038873,4]
[314422779,1708331443905,-500.0,0.00038873,4]
[314422780,1708331443914,-7781.29677975,0.00038874,2]
[314422781,1708331443923,-500.0,0.00038874,4]
[314422782,1708331443933,-500.0,0.00038874,2]
[314422783,1708331443943,-500.0,0.00038874,4]
[314422784,1708331443954,-500.0,0.00038874,4]
[314422785,1708331443965,-517.83141611,0.00038874,4]
[314422786,1708331443975,-500.0,0.00038874,4]
[314422788,1708331443985,-500.0,0.00038874,4]
[314422790,1708331443995,-13559.92026334,0.00038874,2]
[314422792,1708331444004,-500.0,0.00038874,4]
[314422794,1708331444013,-500.0,0.00038875,4]
[314422796,1708331444023,-163.24547186,0.00038875,2]
[314422798,1708331444033,-500.0,0.00038875,4]
[314422800,1708331444043,-527.37665536,0.00038875,4]
[314422802,1708331444052,-392.87084402,0.00038875,4]
[314422804,1708331444062,-500.0,0.00038875,4]
[314422806,1708331444071,-500.0,0.00038875,4]
[314422808,1708331444081,-1000.0,0.00038877,2]
[314422810,1708331444091,-500.0,0.00038878,4]
[314422812,1708331444100,-202.63122255,0.00038878,4]
[314422814,1708331444112,-500.0,0.00038878,4]
[314422816,1708331444121,-336.234787,0.00038879,14]
[314422818,1708331444131,-336.234787,0.00038879,14]
[314422820,1708331444141,-151.0,0.00038879,14]
[314422822,1708331444150,-169.548625,0.00038879,14]
[314422824,1708331444160,-252.355654,0.00038879,14]
[314422826,1708331444170,-156.65,0.0003888,2]
[314422828,1708331444179,-426.20287503,0.0003888,4]
[314422830,1708331444188,-500.0,0.00038882,4]
[314422832,1708331444197,-500.0,0.00038882,2]
[314422834,1708331444207,-2895.09,0.00038882,4]
[314422836,1708331444219,-500.0,0.00038882,4]
[314422838,1708331444228,-500.0,0.00038882,4]
[314422840,1708331444238,-500.0,0.00038882,4]
[314422842,1708331444248,-500.0,0.00038882,4]
[314422844,1708331444258,-228.23599035,0.00038882,4]
[314422845,1708331444267,-1141.94,0.00038882,4]
[314422846,1708331444276,-1142.03,0.00038882,4]
[314422847,1708331444286,-158.70210734,0.00038882,4]
[314422848,1708331444295,-500.0,0.00038883,4]
[314422849,1708331444305,-500.0,0.00038883,4]
[314422850,1708331444315,-500.0,0.00038883,4]
[314422851,1708331444325,-500.0,0.00038883,4]
[314422852,1708331444334,-500.0,0.00038883,4]
[314422853,1708331444343,-500.0,0.00038883,4]
[314422854,1708331444353,-2399.85,0.00038883,4]
[314422855,1708331444362,-500.0,0.00038883,4]
[314422856,1708331444371,-804.69,0.00038883,4]
[314422857,1708331444381,-500.0,0.00038883,4]
[314422858,1708331444391,-150.01,0.00038884,2]
[314422859,1708331444400,-3319.32799788,0.00038884,2]
[314422860,1708331444409,-500.0,0.00038884,4]
[314422861,1708331444419,-500.0,0.00038884,4]
[314422862,1708331444429,-500.0,0.00038884,20]
[314422863,1708331444438,-500.0,0.00038884,4]
[314422864,1708331444448,-500.0,0.00038884,4]
[314422865,1708331444458,-623.80953391,0.00038884,4]
[314422866,1708331444468,-151.0,0.00038884,7]
[314422867,1708331444477,-666.0,0.00038884,2]
[314422868,1708331444487,-215.400571,0.00038884,14]
[314422869,1708331444496,-215.400571,0.00038884,14]
[314422870,1708331444505,-840.524964,0.00038884,14]
[314422871,1708331444513,-840.524964,0.00038884,14]
[314422872,1708331444522,-176.376743,0.00038884,14]
[314422873,1708331444532,-151.0,0.00038884,14]
[314422874,1708331444541,-176.376743,0.00038884,14]
[314422875,1708331444550,-151.0,0.00038884,14]
[314422876,1708331444558,-303.213569,0.00038884,14]
[314422877,1708331444567,-267.09675232,0.00038884,4]
[314422878,1708331444576,-303.213569,0.00038884,14]
[314422879,1708331444585,-151.0,0.00038884,7]
[314422880,1708331444595,-185.966833,0.00038884,3]
[314422881,1708331444604,-151.0,0.00038884,14]
[314422882,1708331444619,-185.966833,0.00038884,3]
[314422883,1708331444628,-558.619538,0.00038884,14]
[314422884,1708331444638,-558.619538,0.00038884,14]
[314422885,1708331444648,-407.651178,0.00038884,14]
[314422886,1708331444658,-407.651178,0.00038884,14]
[314422887,1708331444667,-151.0,0.00038884,14]
[314422888,1708331444677,-272.97071177,0.00038884,4]
[314422889,1708331444687,-193.217027,0.00038884,14]
[314422890,1708331444696,-407.313882,0.00038884,14]
[314422891,1708331444705,-407.313882,0.00038884,14]
[314422892,1708331444716,-1110.99,0.00038884,4]
[314422893,1708331444725,-152.705371,0.00038884,14]
[314422894,1708331444734,-152.705371,0.00038884,14]
[314422895,1708331444744,-151.0,0.00038884,14]
[314422896,1708331444754,-164.820382,0.00038884,14]
[314422897,1708331444763,-500.0,0.00038884,4]
[314422898,1708331444917,-500.0,0.00038884,4]
[314422899,1708331444927,-500.0,0.00038884,4]
[314422900,1708331444937,-151.0,0.00038884,14]
[314422901,1708331444947,-1747.112516,0.00038884,14]
[314422902,1708331444956,-1747.112516,0.00038884,14]
[314422903,1708331444967,-169.873603,0.00038884,14]
[314422904,1708331444977,-151.0,0.00038884,14]
[314422905,1708331444987,-500.0,0.00038884,4]
[314422906,1708331444998,-500.0,0.00038884,4]
[314422907,1708331445007,-500.0,0.00038884,4]
[314422908,1708331445017,-500.0,0.00038884,4]
[314422909,1708331445026,-197.65116595,0.00038884,4]
[314422911,1708331445036,-500.0,0.00038884,4]
[314422912,1708331445045,-1141.94,0.00038884,4]
[314422913,1708331445054,-1142.03,0.00038884,4]
[314422914,1708331445063,-473.96966089,0.00038884,4]
[314422915,1708331445072,-495.49489867,0.00038885,14]
[314422916,1708331445082,-500.0,0.00038889,4]
[314422917,1708331445092,-500.0,0.00038889,4]
[314422918,1708331445101,-500.0,0.00038889,20]
[314422919,1708331445110,-274.02,0.00038889,2]
[314422920,1708331445119,-150.0,0.00038889,2]
[314422921,1708331445128,-300.0,0.00038889,7]
[314422922,1708331445137,-450.0,0.00038889,12]
[314422923,1708331445147,-600.0,0.00038889,17]
[314422924,1708331445156,-750.0,0.00038889,22]
[314422925,1708331445165,-1110.99,0.00038889,4]
[314422926,1708331445174,-500.0,0.00038889,4]
[314422927,1708331445183,-500.0,0.00038889,4]
[314422928,1708331445192,-500.0,0.00038889,4]
[314422929,1708331445202,-500.0,0.00038889,4]
[314422930,1708331445212,-500.0,0.00038889,4]
[314422931,1708331445221,-500.0,0.00038889,4]
[314422932,1708331445231,-289.628742,0.00038889,14]
[314422933,1708331445240,-151.0,0.00038889,14]
[314422934,1708331445249,-289.628742,0.00038889,14]
[314422935,1708331445258,-256.749914,0.00038889,14]
[314422936,1708331445267,-220.534074,0.00038889,14]
[314422937,1708331445276,-163.569567,0.00038889,14]
[314422938,1708331445285,-256.749914,0.00038889,14]
[314422939,1708331445295,-220.534074,0.00038889,14]
[314422940,1708331445304,-163.569567,0.00038889,14]
[314422941,1708331445313,-424.796395,0.00038889,14]
[314422942,1708331445322,-424.796395,0.00038889,14]
[314422943,1708331445331,-151.0,0.00038889,14]
[314422944,1708331445340,-151.0,0.00038889,14]
[314422945,1708331445350,-6854.281877,0.00038889,14]
[314422946,1708331445359,-6854.281877,0.00038889,14]
[314422947,1708331445368,-8550.0,0.00038889,14]
[314422948,1708331445378,-8550.0,0.00038889,14]
[314422949,1708331445387,-1402.654032,0.00038889,14]
[314422950,1708331445396,-500.0,0.00038889,4]
[314422951,1708331445405,-1402.654032,0.00038889,14]
[314422952,1708331445414,-151.0,0.00038889,14]
[314422953,1708331445423,-262.481154,0.00038889,14]
[314422954,1708331445433,-861.933875,0.00038889,14]
[314422955,1708331445442,-151.0,0.00038889,14]
[314422956,1708331445451,-262.481154,0.00038889,14]
[314422957,1708331445462,-861.933875,0.00038889,14]
[314422958,1708331445471,-300.720131,0.00038889,14]
[314422959,1708331445481,-500.0,0.00038889,4]
[314422960,1708331445491,-300.720131,0.00038889,14]
[314422961,1708331445501,-151.0,0.00038889,14]
[314422962,1708331445510,-151.0,0.00038889,14]
[314422963,1708331445520,-151.0,0.00038889,14]
[314422964,1708331445530,-761.988408,0.00038889,14]
[314422965,1708331445539,-761.988408,0.00038889,14]
[314422966,1708331445548,-168.39365,0.00038889,14]
[314422967,1708331445558,-168.39365,0.00038889,14]
[314422968,1708331445567,-1141.94,0.00038889,4]
[314422969,1708331445576,-345.987493,0.00038889,14]
[314422970,1708331445586,-294.905721,0.00038889,14]
[314422971,1708331445595,-345.987493,0.00038889,14]
[314422972,1708331445608,-294.905721,0.00038889,14]
[314422973,1708331445617,-164.035459,0.00038889,14]
[314422974,1708331445627,-164.035459,0.00038889,14]
[314422975,1708331445636,-4019.845621,0.00038889,14]
[314422976,1708331445647,-201.498821,0.00038889,14]
[314422977,1708331445656,-4019.845621,0.00038889,14]
[314422978,1708331445665,-151.0,0.00038889,7]
[314422979,1708331445675,-201.498821,0.00038889,14]
[314422980,1708331445686,-332.222538,0.00038889,14]
[314422981,1708331445697,-332.222538,0.00038889,14]
[314422982,1708331445706,-1142.03,0.00038889,4]
[314422983,1708331445717,-221.790654,0.00038889,14]
[314422984,1708331445726,-1181.116676,0.00038889,14]
[314422985,1708331445736,-500.0,0.00038889,4]
[314422986,1708331445745,-221.790654,0.00038889,14]
[314422987,1708331445755,-1181.116676,0.00038889,14]
[314422988,1708331445765,-3511.84867,0.00038889,14]